Workbook

Sheet Budget matrimonio
B4: Data del matrimonio:
B5: =TODAY()+365 -> 2020-06-28
B7: Categoria | C7: Stimate | D7: Effettive | E7: Superiore/inferiore | F7: Fatto
B8: Abbigliamento | C8: =Abbigliamento_Totale_sti -> 9,490.00 | D8: =Abbigliamento_Totale_eff -> 9,770.00 | E8: =RiepilogoBudget[[#This Row],[Stimate]]-RiepilogoBudget[[#This Row],[Effettive]] -> -280.00 | F8: =Abbigliamento_Fatto -> No
B9: Ricevimento nuziale | C9: =Ricevimentonuziale_Totale_sti -> 1,050.00 | D9: =Ricevimentonuziale_Totale_eff -> 928.00 | E9: =RiepilogoBudget[[#This Row],[Stimate]]-RiepilogoBudget[[#This Row],[Effettive]] -> 122.00 | F9: =Ricevimentonuziale_Fatto -> Sì
B10: Musica | C10: =Musica_Intrattenimento_Totale_sti -> 600.00 | D10: =Musica_Intrattenimento_Totale_eff -> 500.00 | E10: =RiepilogoBudget[[#This Row],[Stimate]]-RiepilogoBudget[[#This Row],[Effettive]] -> 100.00 | F10: =Musica_Fatta -> Sì
B11: Stampa | C11: =Stampa__Elementidecorativi_Totale_sti -> 935.00 | D11: =Stampa__Elementidecorativi_Totale_eff -> 870.00 | E11: =RiepilogoBudget[[#This Row],[Stimate]]-RiepilogoBudget[[#This Row],[Effettive]] -> 65.00 | F11: =Stampa_Fatto -> No
B12: Fotografia | C12: =Fotografia_Totale_sti -> 1,625.00 | D12: =Fotografia_Totale_eff -> 1,575.00 | E12: =RiepilogoBudget[[#This Row],[Stimate]]-RiepilogoBudget[[#This Row],[Effettive]] -> 50.00 | F12: =Fotografia_Fatto -> No
B13: Decorazioni | C13: =Decorazioni_Totale_sti -> 700.00 | D13: =Decorazioni_Totale_eff -> 720.00 | E13: =RiepilogoBudget[[#This Row],[Stimate]]-RiepilogoBudget[[#This Row],[Effettive]] -> -20.00 | F13: =Deco_Fatte -> Sì
B14: Fiori | C14: =Fiori_Totale_sti -> 900.00 | D14: =Fiori_Totale_eff -> 850.00 | E14: =RiepilogoBudget[[#This Row],[Stimate]]-RiepilogoBudget[[#This Row],[Effettive]] -> 50.00 | F14: =Fiori_Fatti -> No
B15: Regali | C15: =Regali_Totale_sti -> 1,345.00 | D15: =Regali_Totale_eff -> 1,075.00 | E15: =RiepilogoBudget[[#This Row],[Stimate]]-RiepilogoBudget[[#This Row],[Effettive]] -> 270.00 | F15: =Regali_Fatti -> No
B16: Viaggi | C16: =Viaggi_Trasporti_Totale_sti -> 100.00 | D16: =Viaggi_Trasporti_Totale_eff -> 165.00 | E16: =RiepilogoBudget[[#This Row],[Stimate]]-RiepilogoBudget[[#This Row],[Effettive]] -> -65.00 | F16: =Viaggi_Fatto -> Sì
B17: Altro | C17: =Altre_Spese_Totale_sti -> 885.00 | D17: =Altre_Spese_Totale_eff -> 1,021.00 | E17: =RiepilogoBudget[[#This Row],[Stimate]]-RiepilogoBudget[[#This Row],[Effettive]] -> -136.00 | F17: =Altro_Fatto -> No
B18: Totale spese | C18: =SUBTOTAL(109,RiepilogoBudget[Stimate]) -> 17,630.00 | D18: =SUBTOTAL(109,RiepilogoBudget[Effettive]) -> 17,474.00 | E18: =SUBTOTAL(109,RiepilogoBudget[Superiore/inferiore]) -> 156.00
B19: Il grafico che mostra la percentuale delle spese di ogni categoria si trova in questa cella.

Sheet Spese
B2: Abbigliamento
B4: Categoria | C4: Stimate | D4: Effettive | E4: Superiore/inferiore
B5: Anello(i) di fidanzamento | C5: 1,500.00 | D5: 1,500.00 | E5: =Spese!$C5-Spese!$D5 -> 0.00
B6: Anello sposo 1 | C6: 2,000.00 | D6: 2,300.00 | E6: =Spese!$C6-Spese!$D6 -> -300.00
B7: Abito/smoking sposo 1 | C7: 3,000.00 | D7: 2,750.00 | E7: =Spese!$C7-Spese!$D7 -> 250.00
B8: Velo/accessorio per capelli sposo 1 | C8: 500.00 | D8: 500.00 | E8: =Spese!$C8-Spese!$D8 -> 0.00
B9: Scarpe sposo 1 | C9: 350.00 | D9: 300.00 | E9: =Spese!$C9-Spese!$D9 -> 50.00
B10: Gioielli sposo 1 | C10: 400.00 | D10: 550.00 | E10: =Spese!$C10-Spese!$D10 -> -150.00
B11: Calze sposo 1 | C11: 20.00 | D11: 20.00 | E11: =Spese!$C11-Spese!$D11 -> 0.00
B12: Anello sposo 2 | C12: 300.00 | D12: 250.00 | E12: =Spese!$C12-Spese!$D12 -> 50.00
B13: Abito/smoking sposo 2 | C13: 300.00 | D13: 350.00 | E13: =Spese!$C13-Spese!$D13 -> -50.00
B14: Velo/accessorio per capelli sposo 2 | C14: 500.00 | D14: 500.00 | E14: =Spese!$C14-Spese!$D14 -> 0.00
B15: Scarpe sposo 2 | C15: 200.00 | D15: 175.00 | E15: =Spese!$C15-Spese!$D15 -> 25.00
B16: Gioielli sposo 2 | C16: 400.00 | D16: 550.00 | E16: =Spese!$C16-Spese!$D16 -> -150.00
B17: Calze sposo 2 | C17: 20.00 | D17: 25.00 | E17: =Spese!$C17-Spese!$D17 -> -5.00
B18: Totale abbigliamento | C18: =SUBTOTAL(109,Abbigliamento[Stimate]) -> 9,490.00 | D18: =SUBTOTAL(109,Abbigliamento[Effettive]) -> 9,770.00 | E18: =SUBTOTAL(109,Abbigliamento[Superiore/inferiore]) -> -280.00
D20: ="Sono state effettuate tutte le spese nella categoria "&B2&"?" -> Sono state effettuate tutte le spese nella categoria Abbigliamento? | E20: No
B22: Ricevimento nuziale*
B24: Categoria | C24: Stimate | D24: Effettive | E24: Superiore/inferiore
B25: Spese sala/hall | C25: 200.00 | D25: 150.00 | E25: =Spese!$C25-Spese!$D25 -> 50.00
B26: Tavoli e sedie | C26: 100.00 | D26: 50.00 | E26: =Spese!$C26-Spese!$D26 -> 50.00
B27: Cibo | C27: 0.00 | D27: 0.00 | E27: =Spese!$C27-Spese!$D27 -> 0.00
B28: Bevande | C28: 0.00 | D28: 0.00 | E28: =Spese!$C28-Spese!$D28 -> 0.00
B29: Biancheria da tavola | C29: 0.00 | D29: 0.00 | E29: =Spese!$C29-Spese!$D29 -> 0.00
B30: Torta | C30: 700.00 | D30: 700.00 | E30: =Spese!$C30-Spese!$D30 -> 0.00
B31: Bomboniere | C31: 50.00 | D31: 28.00 | E31: =Spese!$C31-Spese!$D31 -> 22.00
B32: Personale e mance | C32: 0.00 | D32: 0.00 | E32: =Spese!$C32-Spese!$D32 -> 0.00
B33: Totale ricevimento nuziale | C33: =SUBTOTAL(109,RicevimentoNuziale[Stimate]) -> 1,050.00 | D33: =SUBTOTAL(109,RicevimentoNuziale[Effettive]) -> 928.00 | E33: =SUBTOTAL(109,RicevimentoNuziale[Superiore/inferiore]) -> 122.00
B34: *Intrattenimento e decorazioni esclusi
D36: ="Sono state effettuate tutte le spese nella categoria "&B22&"?" -> Sono state effettuate tutte le spese nella categoria Ricevimento nuziale*? | E36: Sì
B38: Musica/intrattenimento
B40: Categoria | C40: Stimate | D40: Effettive | E40: Superiore/inferiore
B41: Musicisti per la cerimonia | C41: 400.00 | D41: 400.00 | E41: =Spese!$C41-Spese!$D41 -> 0.00
B42: Gruppo/DJ per il ricevimento | C42: 200.00 | D42: 100.00 | E42: =Spese!$C42-Spese!$D42 -> 100.00
B43: Totale musica/intrattenimento | C43: =SUBTOTAL(109,Musica[Stimate]) -> 600.00 | D43: =SUBTOTAL(109,Musica[Effettive]) -> 500.00 | E43: =SUBTOTAL(109,Musica[Superiore/inferiore]) -> 100.00
D45: ="Sono state effettuate tutte le spese nella categoria "&B38&"?" -> Sono state effettuate tutte le spese nella categoria Musica/intrattenimento? | E45: Sì
B47: Stampa/elementi decorativi
B49: Categoria | C49: Stimate | D49: Effettive | E49: Superiore/inferiore
B50: Inviti | C50: 500.00 | D50: 450.00 | E50: =Spese!$C50-Spese!$D50 -> 50.00
B51: Annunci | C51: 200.00 | D51: 175.00 | E51: =Spese!$C51-Spese!$D51 -> 25.00
B52: Biglietti di ringraziamento | C52: 100.00 | D52: 100.00 | E52: =Spese!$C52-Spese!$D52 -> 0.00
B53: Elementi decorativi personali | C53: 0.00 | D53: 0.00 | E53: =Spese!$C53-Spese!$D53 -> 0.00
B54: Libro degli ospiti | C54: 25.00 | D54: 25.00 | E54: =Spese!$C54-Spese!$D54 -> 0.00
B55: Programmi | C55: 75.00 | D55: 80.00 | E55: =Spese!$C55-Spese!$D55 -> -5.00
B56: Tovaglioli del ricevimento | C56: 35.00 | D56: 40.00 | E56: =Spese!$C56-Spese!$D56 -> -5.00
B57: Fiammiferi | C57: 0.00 | D57: 0.00 | E57: =Spese!$C57-Spese!$D57 -> 0.00
B58: Calligrafia | C58: 0.00 | D58: 0.00 | E58: =Spese!$C58-Spese!$D58 -> 0.00
B59: Totale stampa/elementi decorativi | C59: =SUBTOTAL(109,Stampa[Stimate]) -> 935.00 | D59: =SUBTOTAL(109,Stampa[Effettive]) -> 870.00 | E59: =SUBTOTAL(109,Stampa[Superiore/inferiore]) -> 65.00
D61: ="Sono state effettuate tutte le spese nella categoria "&B47&"?" -> Sono state effettuate tutte le spese nella categoria Stampa/elementi decorativi? | E61: No
B63: Fotografia
B65: Categoria | C65: Stimate | D65: Effettive | E65: Superiore/inferiore
B66: Formali | C66: 1,300.00 | D66: 1,300.00 | E66: =Spese!$C66-Spese!$D66 -> 0.00
B67: Stampe aggiuntive | C67: 25.00 | D67: 25.00 | E67: =Spese!$C67-Spese!$D67 -> 0.00
B68: Album fotografici | C68: 100.00 | D68: 100.00 | E68: =Spese!$C68-Spese!$D68 -> 0.00
B69: Servizi video | C69: 200.00 | D69: 150.00 | E69: =Spese!$C69-Spese!$D69 -> 50.00
B70: Totale fotografia | C70: =SUBTOTAL(109,Fotografia[Stimate]) -> 1,625.00 | D70: =SUBTOTAL(109,Fotografia[Effettive]) -> 1,575.00 | E70: =SUBTOTAL(109,Fotografia[Superiore/inferiore]) -> 50.00
D72: ="Sono state effettuate tutte le spese nella categoria "&B63&"?" -> Sono state effettuate tutte le spese nella categoria Fotografia? | E72: No
B74: Decorazioni*
B76: Categoria | C76: Stimate | D76: Effettive | E76: Superiore/inferiore
B77: Rivestimenti per sedie | C77: 0.00 | D77: 0.00 | E77: =Spese!$C77-Spese!$D77 -> 0.00
B78: Centrotavola | C78: 300.00 | D78: 320.00 | E78: =Spese!$C78-Spese!$D78 -> -20.00
B79: Candeline | C79: 100.00 | D79: 75.00 | E79: =Spese!$C79-Spese!$D79 -> 25.00
B80: Illuminazione | C80: 100.00 | D80: 75.00 | E80: =Spese!$C80-Spese!$D80 -> 25.00
B81: Palloncini | C81: 200.00 | D81: 250.00 | E81: =Spese!$C81-Spese!$D81 -> -50.00
B82: Totale decorazioni | C82: =SUBTOTAL(109,Decorazioni[Stimate]) -> 700.00 | D82: =SUBTOTAL(109,Decorazioni[Effettive]) -> 720.00 | E82: =SUBTOTAL(109,Decorazioni[Superiore/inferiore]) -> -20.00
B83: *Fiori esclusi
D85: ="Sono state effettuate tutte le spese nella categoria "&B74&"?" -> Sono state effettuate tutte le spese nella categoria Decorazioni*? | E85: Sì
B87: Fiori
B89: Categoria | C89: Stimate | D89: Effettive | E89: Superiore/inferiore
B90: Bouquet | C90: 500.00 | D90: 450.00 | E90: =Spese!$C90-Spese!$D90 -> 50.00
B91: Fiore all'occhiello | C91: 0.00 | D91: 0.00 | E91: =Spese!$C91-Spese!$D91 -> 0.00
B92: Corsage | C92: 0.00 | D92: 0.00 | E92: =Spese!$C92-Spese!$D92 -> 0.00
B93: Cerimonia | C93: 400.00 | D93: 400.00 | E93: =Spese!$C93-Spese!$D93 -> 0.00
B94: Ricevimento nuziale | C94: 0.00 | D94: 0.00 | E94: =Spese!$C94-Spese!$D94 -> 0.00
B95: Totale fiori | C95: =SUBTOTAL(109,Fiori[Stimate]) -> 900.00 | D95: =SUBTOTAL(109,Fiori[Effettive]) -> 850.00 | E95: =SUBTOTAL(109,Fiori[Superiore/inferiore]) -> 50.00
D97: ="Sono state effettuate tutte le spese nella categoria "&B87&"?" -> Sono state effettuate tutte le spese nella categoria Fiori? | E97: No
B99: Regali
B101: Categoria | C101: Stimate | D101: Effettive | E101: Superiore/inferiore
B102: Partecipanti | C102: 1,000.00 | D102: 400.00 | E102: =Spese!$C102-Spese!$D102 -> 600.00
B103: Sposo 1 | C103: 150.00 | D103: 200.00 | E103: =Spese!$C103-Spese!$D103 -> -50.00
B104: Sposo 2 | C104: 150.00 | D104: 200.00 | E104: =Spese!$C104-Spese!$D104 -> -50.00
B105: Genitori | C105: 25.00 | D105: 25.00 | E105: =Spese!$C105-Spese!$D105 -> 0.00
B106: Lettori/altri partecipanti | C106: 20.00 | D106: 250.00 | E106: =Spese!$C106-Spese!$D106 -> -230.00
B107: Totale regali | C107: =SUBTOTAL(109,Regali[Stimate]) -> 1,345.00 | D107: =SUBTOTAL(109,Regali[Effettive]) -> 1,075.00 | E107: =SUBTOTAL(109,Regali[Superiore/inferiore]) -> 270.00
D109: ="Sono state effettuate tutte le spese nella categoria "&B99&"?" -> Sono state effettuate tutte le spese nella categoria Regali? | E109: No
B111: Viaggi/trasporti
B113: Categoria | C113: Stimate | D113: Effettive | E113: Superiore/inferiore
B114: Limousine/tram | C114: 100.00 | D114: 125.00 | E114: =Spese!$C114-Spese!$D114 -> -25.00
B115: Parcheggio | C115: 0.00 | D115: 40.00 | E115: =Spese!$C115-Spese!$D115 -> -40.00
B116: Taxi | C116: 0.00 | D116: 0.00 | E116: =Spese!$C116-Spese!$D116 -> 0.00
B117: Totale viaggi/trasporti | C117: =SUBTOTAL(109,Viaggi[Stimate]) -> 100.00 | D117: =SUBTOTAL(109,Viaggi[Effettive]) -> 165.00 | E117: =SUBTOTAL(109,Viaggi[Superiore/inferiore]) -> -65.00
D119: ="Sono state effettuate tutte le spese nella categoria "&B111&"?" -> Sono state effettuate tutte le spese nella categoria Viaggi/trasporti? | E119: Sì
B121: Altre spese
B123: Categoria | C123: Stimate | D123: Effettive | E123: Superiore/inferiore
B124: Officiante | C124: 0.00 | D124: 0.00 | E124: =Spese!$C124-Spese!$D124 -> 0.00
B125: Compenso per la chiesa/sede della cerimonia | C125: 40.00 | D125: 55.00 | E125: =Spese!$C125-Spese!$D125 -> -15.00
B126: Coordinatore per il matrimonio | C126: 0.00 | D126: 0.00 | E126: =Spese!$C126-Spese!$D126 -> 0.00
B127: Cena prenuziale | C127: 450.00 | D127: 450.00 | E127: =Spese!$C127-Spese!$D127 -> 0.00
B128: Festa di fidanzamento | C128: 20.00 | D128: 50.00 | E128: =Spese!$C128-Spese!$D128 -> -30.00
B129: Feste | C129: 30.00 | D129: 20.00 | E129: =Spese!$C129-Spese!$D129 -> 10.00
B130: Appuntamenti dal parrucchiere | C130: 45.00 | D130: 46.00 | E130: =Spese!$C130-Spese!$D130 -> -1.00
B131: Feste di addio al celibato/nubilato | C131: 0.00 | D131: 0.00 | E131: =Spese!$C131-Spese!$D131 -> 0.00
B132: Aperitivo | C132: 300.00 | D132: 400.00 | E132: =Spese!$C132-Spese!$D132 -> -100.00
B133: Camere d'albergo | C133: 0.00 | D133: 0.00 | E133: =Spese!$C133-Spese!$D133 -> 0.00
B134: Totale delle altre spese | C134: =SUBTOTAL(109,AltreSpese[Stimate]) -> 885.00 | D134: =SUBTOTAL(109,AltreSpese[Effettive]) -> 1,021.00 | E134: =SUBTOTAL(109,AltreSpese[Superiore/inferiore]) -> -136.00
D136: ="Sono state effettuate tutte le spese nella categoria "&B121&"?" -> Sono state effettuate tutte le spese nella categoria Altre spese? | E136: No

Sheet Calcoli (hidden)
B2: CATEGORIA | C2: STIMATE | D2: Effettive | F2: Stimate | H2: SUPERIORE/INFERIORE
B3: Abbigliamento | C3: =Abbigliamento_Totale_sti -> 9,490.00 | D3: =Abbigliamento_Totale_eff -> 9,770.00 | E3: =C3-F3 -> 9,480.00 | F3: =ROUNDUP($C$13/1000,0) -> 10.00 | G3: =$D$13-E3 -> 290 | H3: =D3-C3 -> 280.00
B4: Ricevimento nuziale | C4: =Ricevimentonuziale_Totale_sti -> 1,050.00 | D4: =Ricevimentonuziale_Totale_eff -> 928.00 | E4: =C4-F4 -> 1,040.00 | F4: =ROUNDUP($C$13/1000,0) -> 10.00 | G4: =$D$13-E4 -> 8730 | H4: =D4-C4 -> -122.00
B5: Musica | C5: =Musica_Intrattenimento_Totale_sti -> 600.00 | D5: =Musica_Intrattenimento_Totale_eff -> 500.00 | E5: 590.00 | F5: 10.00 | G5: 9180 | H5: -100.00
B6: Stampa | C6: =Stampa__Elementidecorativi_Totale_sti -> 935.00 | D6: =Stampa__Elementidecorativi_Totale_eff -> 870.00 | E6: 925.00 | F6: 10.00 | G6: 8845 | H6: -65.00
B7: Fotografia | C7: =Fotografia_Totale_sti -> 1,625.00 | D7: =Fotografia_Totale_eff -> 1,575.00 | E7: 1,615.00 | F7: 10.00 | G7: 8155 | H7: -50.00
B8: Decorazioni | C8: =Decorazioni_Totale_sti -> 700.00 | D8: =Decorazioni_Totale_eff -> 720.00 | E8: 690.00 | F8: 10.00 | G8: 9080 | H8: 20.00
B9: Fiori | C9: =Fiori_Totale_sti -> 900.00 | D9: =Fiori_Totale_eff -> 850.00 | E9: 890.00 | F9: 10.00 | G9: 8880 | H9: -50.00
B10: Regali | C10: =Regali_Totale_sti -> 1,345.00 | D10: =Regali_Totale_eff -> 1,075.00 | E10: 1,335.00 | F10: 10.00 | G10: 8435 | H10: -270.00
B11: Viaggi | C11: =Viaggi_Trasporti_Totale_sti -> 100.00 | D11: =Viaggi_Trasporti_Totale_eff -> 165.00 | E11: 90.00 | F11: 10.00 | G11: 9680 | H11: 65.00
B12: Altro | C12: =Altre_Spese_Totale_sti -> 885.00 | D12: =Altre_Spese_Totale_eff -> 1,021.00 | E12: 875.00 | F12: 10.00 | G12: 8895 | H12: 136.00
B13: Max | C13: =MAX(C3:D12) -> 9770 | D13: =MAX(C3:D12) -> 9770 | F13: 10.00
